bitfinex/quotes_BTCUSD_20220213
["timestamp","ask_amount","ask_price","bid_price","bid_amount"]
[1644756992381,0.24072678,42502.0,42498.0,0.13442937]
[1644756992582,0.14082678,42502.0,42499.0,0.055124]
[1644756992783,0.14082678,42502.0,42500.0,0.35818317]
[1644756992982,0.14082678,42502.0,42501.0,0.27622007]
[1644756993183,0.14082678,42502.0,42501.0,0.27643037]
[1644756993683,0.14082678,42502.0,42501.0,0.0002103]
[1644756993883,0.14082678,42502.0,42500.0,0.0590383]
[1644756994081,0.14082678,42502.0,42500.0,0.32572812]
[1644756994483,0.14082678,42502.0,42500.0,0.0590383]
[1644756995083,0.14082678,42502.0,42500.0,0.058828]
[1644756995327,0.14082678,42502.0,42500.0,0.0590383]
[1644756995926,0.14072791,42502.0,42500.0,0.0590383]
[1644756996327,0.14072791,42502.0,42500.0,0.058828]
[1644756996528,0.14072791,42502.0,42500.0,0.0002103]
[1644756996727,0.14072791,42502.0,42499.0,0.00048312]
[1644756996927,0.14044393,42502.0,42499.0,0.00048312]
[1644756997231,0.14044393,42502.0,42498.0,0.0002103]
[1644756997427,0.14044393,42502.0,42498.0,0.00048312]
[1644756997628,0.14044393,42502.0,42500.0,0.07575468]
[1644756998029,0.14044393,42502.0,42500.0,0.07596498]
[1644756999881,0.14044393,42502.0,42500.0,0.13479698]
[1644757000378,0.14044393,42502.0,42501.0,0.005118]
[1644757000581,0.14044393,42502.0,42501.0,0.2735936]
[1644757000780,0.14044393,42502.0,42501.0,0.0053283]
[1644757000982,0.14044393,42502.0,42501.0,0.24872642]
[1644757001179,0.14044393,42502.0,42501.0,0.0053283]
[1644757001779,0.13043593,42502.0,42501.0,0.0053283]
[1644757002830,0.13043593,42502.0,42501.0,0.005118]
[1644757006878,0.12967562,42502.0,42501.0,0.005118]
[1644757012728,0.12967562,42502.0,42501.0,1.250118]
[1644757012936,0.12967562,42502.0,42501.0,1.426558]
[1644757013129,0.12967562,42502.0,42501.0,1.526558]
[1644757013328,0.12967562,42502.0,42501.0,1.426558]
[1644757013731,0.12967562,42502.0,42501.0,0.17644]
[1644757013990,0.12967562,42502.0,42501.0,0.005118]
[1644757014184,0.07017562,42502.0,42501.0,0.005118]
[1644757020335,0.07017562,42502.0,42500.0,0.058832]
[1644757021982,0.07017562,42502.0,42501.0,0.005118]
[1644757022979,0.07017562,42502.0,42500.0,0.058832]
[1644757023179,0.07017562,42502.0,42501.0,0.005118]
[1644757023581,0.07017562,42502.0,42500.0,0.058832]
[1644757023779,0.07017562,42502.0,42501.0,0.005118]
[1644757023981,0.07017562,42502.0,42500.0,0.058832]
[1644757024884,0.07017562,42502.0,42501.0,0.005118]
[1644757025933,0.07017562,42502.0,42501.0,0.00505478]
[1644757027132,0.07017562,42502.0,42501.0,0.29204899]
[1644757027832,0.07017562,42502.0,42501.0,0.22504899]
[1644757028632,0.07017562,42502.0,42501.0,0.32504899]
[1644757028838,0.07017562,42502.0,42501.0,0.25]
[1644757029083,0.07017562,42502.0,42501.0,0.2]
[1644757029282,0.07017562,42502.0,42501.0,0.1]
[1644757029489,0.07017562,42502.0,42501.0,0.05]
[1644757029683,0.07017562,42502.0,42500.0,1.50660235]
[1644757030182,0.07017562,42502.0,42500.0,0.22498934]
[1644757030585,0.07017562,42502.0,42501.0,0.28467465]
[1644757030784,0.07017562,42502.0,42501.0,0.28594964]
[1644757031185,0.07017562,42502.0,42501.0,0.3248874]
[1644757031385,0.07017562,42502.0,42501.0,1.53094964]
[1644757031685,0.07017562,42502.0,42501.0,1.56856904]
[1644757033636,0.07017562,42502.0,42501.0,1.57625202]
[1644757034037,0.07017562,42502.0,42501.0,1.5762469]
[1644757034533,0.07017562,42502.0,42501.0,0.3312469]
[1644757035141,0.07017562,42502.0,42501.0,0.28594964]
[1644757036142,0.07017562,42502.0,42500.0,0.12498934]
[1644757037082,0.07017562,42502.0,42501.0,0.0348603]
[1644757037283,0.07017562,42502.0,42500.0,0.12498934]
[1644757037884,0.07017562,42502.0,42500.0,0.39162199]
[1644757038184,0.07017562,42502.0,42501.0,1.245]
[1644757038586,0.07017562,42502.0,42500.0,0.12498934]
[1644757038889,0.07017562,42502.0,42501.0,1.51226158]
[1644757039083,0.07017562,42502.0,42501.0,0.35935095]
[1644757039284,0.07017562,42502.0,42501.0,0.31726158]
[1644757039486,0.07017562,42502.0,42501.0,0.35560813]
[1644757039684,0.07017562,42502.0,42501.0,0.31726158]
[1644757040085,0.07017562,42502.0,42501.0,1.61118578]
[1644757040729,0.07017562,42502.0,42501.0,1.56226158]
[1644757044681,0.07017562,42502.0,42501.0,0.31726158]
[1644757045479,0.07017562,42502.0,42501.0,0.05]
[1644757045678,0.07017562,42502.0,42500.0,0.49009672]
[1644757046079,0.00048298,42510.0,42500.0,0.54892272]
[1644757046281,0.00048298,42510.0,42504.0,0.22617893]
[1644757046480,0.158725,42512.0,42504.0,0.22617893]
[1644757046682,0.000483,42510.0,42504.0,0.22617893]
[1644757047729,0.158725,42512.0,42504.0,0.22617893]
[1644757047931,0.00048301,42510.0,42505.0,0.058825]
[1644757048933,0.0999,42512.0,42505.0,0.058825]
[1644757048934,0.34633747,42512.0,42505.0,0.058825]
[1644757049135,0.34633747,42512.0,42502.0,0.117652]
[1644757049136,0.00036327,42510.0,42503.0,0.058831]
[1644757049336,0.00036327,42510.0,42502.0,0.00048311]
[1644757049732,0.058829,42509.0,42502.0,0.00048311]
[1644757050134,0.058829,42509.0,42502.0,0.058833]
[1644757050334,0.0999,42508.0,42502.0,0.058833]
[1644757051134,0.158731,42508.0,42502.0,0.058833]
[1644757051585,0.158731,42508.0,42503.0,0.00048308]
[1644757051781,0.0999,42508.0,42503.0,0.00048308]
[1644757051987,0.0499,42508.0,42503.0,0.00048308]
[1644757052381,0.26254558,42511.0,42503.0,0.00048308]
[1644757052583,0.16254558,42511.0,42502.0,0.058833]
[1644757052783,0.058833,42507.0,42503.0,0.00048308]
[1644757053784,0.26254558,42511.0,42500.0,0.06615734]
[1644757053984,0.26254558,42511.0,42503.0,0.05931508]
[1644757053985,0.1,42511.0,42503.0,0.05931508]
[1644757054284,0.00048298,42512.0,42503.0,0.05931508]
[1644757054985,0.4308,42514.0,42509.0,0.20482229]
[1644757055229,0.27019755,42506.0,42503.0,0.00048309]
[1644757055430,0.27019755,42506.0,42504.0,0.23317089]
[1644757056930,0.27019755,42506.0,42504.0,0.35081189]
[1644757063855,0.27019755,42506.0,42504.0,0.29199089]
[1644757065445,0.3812,42514.0,42513.0,0.058823]
[1644757065646,0.16010957,42515.0,42507.0,0.058821]
[1644757065848,0.0999,42508.0,42507.0,0.058821]
[1644757066481,0.058821,42515.0,42507.0,0.058821]
[1644757066482,0.19937338,42515.0,42511.0,0.21944886]
[1644757066682,0.330117,42514.0,42511.0,0.21944886]
[1644757066881,0.330117,42514.0,42511.0,0.27826886]
[1644757068081,0.330117,42514.0,42511.0,0.05882]
[1644757068285,0.330117,42514.0,42510.0,0.058821]
[1644757068483,0.19954177,42515.0,42503.0,0.42]
[1644757068682,0.19954177,42515.0,42503.0,0.53765]
[1644757069181,0.19954177,42515.0,42507.0,0.20307326]
[1644757069382,0.330117,42514.0,42507.0,0.20307326]
[1644757069583,0.33063897,42514.0,42507.0,0.20307326]
[1644757069782,0.63001235,42514.0,42507.0,0.20307326]
[1644757069984,0.68883535,42514.0,42507.0,0.20307326]
[1644757070231,0.330117,42512.0,42507.0,0.20307326]
[1644757070435,0.1,42512.0,42507.0,0.20307326]
[1644757070633,0.330117,42511.0,42508.0,0.68871201]
[1644757071033,0.330117,42513.0,42508.0,0.68871201]
[1644757071235,0.058825,42512.0,42508.0,0.68871201]
[1644757072237,0.330117,42513.0,42508.0,0.68871201]
[1644757072539,0.330117,42513.0,42508.0,0.74753501]
[1644757072737,0.1,42513.0,42509.0,0.45967556]
[1644757072941,0.430117,42513.0,42509.0,0.45967556]
[1644757073137,0.330117,42513.0,42509.0,0.45967556]
[1644757073539,0.25902367,42513.0,42509.0,0.45967556]
[1644757074291,0.330117,42511.0,42509.0,0.45967556]
[1644757075897,0.058825,42512.0,42509.0,0.45967556]
[1644757076094,0.330115,42511.0,42509.0,0.45967556]
[1644757076293,0.058825,42512.0,42509.0,0.45967556]
[1644757076507,0.330115,42511.0,42509.0,0.45967556]
[1644757076695,0.35948295,42515.0,42509.0,0.51849756]
[1644757076696,0.05934497,42514.0,42509.0,0.51849756]
[1644757076896,0.00052197,42514.0,42509.0,0.51849756]
[1644757077095,0.330115,42513.0,42509.0,0.51849756]
[1644757077297,0.00052197,42514.0,42509.0,0.51849756]
[1644757077832,0.00024772,42517.0,42509.0,0.51849756]
[1644757078035,0.00052198,42514.0,42509.0,0.51849756]
[1644757078431,0.00052198,42514.0,42510.0,0.21436657]
[1644757078630,0.00052198,42514.0,42511.0,0.05881]
[1644757078831,0.00052198,42514.0,42511.0,0.058811]
[1644757079030,0.00024772,42517.0,42516.0,0.23012052]
[1644757079233,0.330115,42517.0,42516.0,0.30876645]
[1644757080641,0.33036272,42518.0,42516.0,0.36757745]
[1644757080836,0.330115,42518.0,42516.0,0.36757745]
[1644757081139,0.33036272,42518.0,42516.0,0.36757745]
[1644757081580,0.330115,42518.0,42516.0,0.36757745]
[1644757081980,0.33036272,42518.0,42516.0,0.36757745]
[1644757082781,0.330115,42518.0,42516.0,0.36757745]
[1644757083184,0.33036272,42518.0,42516.0,0.36757745]
[1644757083987,0.330115,42518.0,42516.0,0.36757745]
[1644757084186,0.33036272,42518.0,42516.0,0.36757745]
[1644757084684,0.33036272,42518.0,42516.0,0.13745693]
[1644757084886,0.33036272,42518.0,42516.0,0.07864593]
[1644757085334,0.21610886,42511.0,42510.0,0.058813]
[1644757085533,0.21610886,42511.0,42510.0,0.14317396]
[1644757086135,0.21610886,42511.0,42510.0,0.14317496]
[1644757093236,0.21610886,42511.0,42510.0,0.058814]
[1644757093237,0.54622386,42511.0,42510.0,0.058814]
[1644757093442,0.54622386,42511.0,42503.0,0.42]
[1644757093443,0.330115,42510.0,42503.0,0.42]
[1644757093636,0.630115,42510.0,42506.0,0.00052207]
[1644757094236,0.83072241,42510.0,42506.0,0.00052207]
[1644757094438,0.330115,42508.0,42506.0,0.00052207]
[1644757094635,0.430015,42507.0,42504.0,0.0721924]
[1644757094835,0.36071698,42510.0,42506.0,0.00052206]
[1644757095036,0.330115,42509.0,42506.0,0.00052206]
[1644757095638,0.330115,42507.0,42506.0,0.00052206]
[1644757095838,0.388946,42507.0,42504.0,0.0721924]
[1644757096041,0.058831,42507.0,42505.0,0.00052207]
[1644757096235,0.330115,42506.0,42505.0,0.00052207]
[1644757096488,0.59696192,42506.0,42505.0,0.00052207]
[1644757096881,0.59696192,42506.0,42503.0,0.42]
[1644757097283,0.59696192,42506.0,42503.0,0.42052208]
[1644757098082,0.59696192,42506.0,42503.0,0.42]
[1644757099086,0.65580092,42506.0,42503.0,0.42]
[1644757099486,0.330115,42505.0,42503.0,0.42]
[1644757099687,0.48399128,42505.0,42503.0,0.42]
[1644757100333,0.58399128,42505.0,42503.0,0.42]
[1644757100532,0.68389128,42505.0,42503.0,0.42]
[1644757101534,0.28562992,42504.0,42503.0,0.42]
[1644757101734,0.61574492,42504.0,42503.0,0.42]
[1644757101935,0.77585449,42504.0,42503.0,0.42]
[1644757102134,0.61574492,42504.0,42503.0,0.42]
[1644757102435,0.77585449,42504.0,42503.0,0.42]
[1644757102634,0.61574492,42504.0,42503.0,0.42]
[1644757102842,0.77585449,42504.0,42503.0,0.42]
[1644757103334,0.61574492,42504.0,42503.0,0.42]
[1644757107734,0.330115,42504.0,42503.0,0.42]
[1644757108434,0.33004618,42504.0,42503.0,0.42]
[1644757110037,0.59327743,42504.0,42503.0,0.42]
[1644757110838,0.753387,42504.0,42503.0,0.42]
[1644757111039,0.33004618,42504.0,42503.0,0.42]
[1644757111238,0.49015575,42504.0,42503.0,0.42]
[1644757111484,0.33004618,42504.0,42503.0,0.42]
[1644757111687,0.59364606,42504.0,42503.0,0.42]
[1644757112887,0.33004618,42504.0,42503.0,0.42]
[1644757115534,0.11341967,42500.0,42498.0,0.00020871]
[1644757115735,0.11341967,42500.0,42497.0,0.08716416]
[1644757115936,0.11341967,42500.0,42497.0,0.14599916]
[1644757116536,0.35721216,42500.0,42497.0,0.14599916]
[1644757117736,0.11341967,42500.0,42497.0,0.14620787]
[1644757118135,0.11341967,42500.0,42497.0,0.14400787]
[1644757122096,0.11341967,42500.0,42497.0,0.08517287]
[1644757123339,0.11341967,42500.0,42498.0,0.2446361]
[1644757123540,0.11341967,42500.0,42498.0,0.24484481]
[1644757124345,0.11341967,42500.0,42498.0,0.30368081]
[1644757124747,0.11341967,42500.0,42498.0,0.67057627]
[1644757124946,0.11341967,42500.0,42499.0,0.26591286]
[1644757129796,0.11341967,42500.0,42499.0,0.33709986]
[1644757129994,0.11341967,42500.0,42499.0,0.26591286]
[1644757132343,0.11341967,42500.0,42499.0,0.33709886]
[1644757132539,0.11341967,42500.0,42499.0,0.26591286]
[1644757133140,0.11341967,42500.0,42499.0,0.33709886]
[1644757133540,0.11341967,42500.0,42499.0,0.26591286]
[1644757133741,0.11341967,42500.0,42498.0,0.36250981]
[1644757133995,0.11341967,42500.0,42498.0,0.30368081]
[1644757134590,0.11341967,42500.0,42498.0,0.57500188]
[1644757134993,0.11341967,42500.0,42498.0,0.63383088]
[1644757135794,0.11341967,42500.0,42498.0,0.57500188]
[1644757135992,0.11341967,42500.0,42498.0,0.30368081]
[1644757137839,0.11341967,42500.0,42498.0,0.36251081]
[1644757138238,0.11341967,42500.0,42498.0,0.30368081]
[1644757138441,0.09838867,42500.0,42498.0,0.30368081]
[1644757141244,0.09838867,42500.0,42498.0,0.24484481]
[1644757141499,0.09838867,42500.0,42498.0,0.00020871]
[1644757141692,0.09838867,42500.0,42497.0,0.08569554]
[1644757142496,0.28785792,42500.0,42497.0,0.00073138]
[1644757142695,0.330122,42499.0,42497.0,0.00020871]
[1644757142899,0.28785792,42500.0,42496.0,0.42052268]
[1644757143094,0.330122,42499.0,42496.0,0.42052268]
[1644757143495,0.28785792,42500.0,42496.0,0.00052268]
[1644757143895,0.28785792,42500.0,42498.0,0.07096727]
[1644757146043,0.14120315,42497.0,42496.0,0.058841]
[1644757148049,0.85,42496.0,42494.0,0.11819969]
[1644757148248,0.630122,42495.0,42491.0,0.0111]
[1644757148644,0.330122,42495.0,42491.0,0.0111]
[1644757148844,0.49023157,42495.0,42491.0,0.0111]
[1644757149095,0.0999,42493.0,42491.0,0.0111]
[1644757149294,0.330122,42492.0,42491.0,0.0111]
[1644757150597,0.61720323,42492.0,42491.0,0.0111]
[1644757151595,0.330122,42492.0,42491.0,0.0111]
[1644757151895,0.330122,42495.0,42491.0,0.0111]
[1644757152095,0.49027864,42495.0,42491.0,0.0111]
[1644757152295,0.330122,42495.0,42491.0,0.0111]
[1644757152495,0.330122,42495.0,42491.0,0.01162272]
[1644757153346,0.330122,42495.0,42491.0,0.09852942]
[1644757153547,0.330122,42495.0,42491.0,0.0980067]
[1644757153747,0.330122,42495.0,42491.0,0.09852942]
[1644757154151,0.24110315,42497.0,42491.0,0.09852942]
[1644757154347,0.330122,42496.0,42491.0,0.09852942]
[1644757154650,0.330122,42496.0,42491.0,0.0980067]
[1644757154847,0.330122,42496.0,42491.0,0.1004797]
[1644757155848,0.330122,42496.0,42491.0,0.09995698]
[1644757156051,0.330122,42496.0,42492.0,0.20258193]
[1644757156520,0.24110315,42497.0,42492.0,0.56142093]
[1644757156712,0.24110315,42497.0,42493.0,0.121204]
[1644757156910,0.24110315,42497.0,42494.0,0.071201]
[1644757157108,0.24110315,42497.0,42492.0,0.28024193]
[1644757157318,0.24110315,42497.0,42492.0,0.2030793]
[1644757157909,0.24082471,42497.0,42492.0,0.2030793]
[1644757158109,0.14120315,42497.0,42492.0,0.2030793]
[1644757158313,0.14120315,42497.0,42494.0,0.117654]
[1644757158509,0.24050315,42497.0,42494.0,0.117654]
[1644757159511,0.14120315,42497.0,42494.0,0.11959599]
[1644757159710,0.24050315,42497.0,42494.0,0.11959599]
[1644757159911,0.14120315,42497.0,42494.0,0.11959599]
[1644757160343,0.24050315,42497.0,42494.0,0.11959599]
[1644757161442,0.0993,42496.0,42494.0,0.11959599]
[1644757161842,0.0993,42496.0,42494.0,0.11980192]
[1644757162044,0.0993,42496.0,42494.0,0.19100292]
[1644757162243,0.0993,42496.0,42494.0,0.11980192]
[1644757162843,0.0993,42496.0,42494.0,0.19100292]
[1644757163845,0.0993,42496.0,42494.0,0.11980192]
[1644757164099,0.14120315,42497.0,42494.0,0.11980192]
[1644757164298,0.0993,42496.0,42495.0,0.071199]
[1644757164500,0.14120315,42497.0,42495.0,0.00020593]
[1644757164698,0.14120315,42497.0,42494.0,0.11980192]
[1644757169663,0.14120315,42497.0,42494.0,0.11785993]
[1644757169864,0.14120315,42497.0,42494.0,0.117654]
[1644757171999,0.14120315,42497.0,42494.0,0.11785993]
[1644757173099,0.14120315,42497.0,42494.0,0.117654]
[1644757173703,0.14120315,42497.0,42494.0,0.11785993]
[1644757174504,0.14120315,42497.0,42494.0,0.117654]
[1644757175105,0.14120315,42497.0,42493.0,0.00020593]
[1644757175351,0.14120315,42497.0,42492.0,0.05953265]
[1644757176350,0.0993,42493.0,42492.0,0.05904893]
[1644757176554,0.14120315,42497.0,42492.0,0.05953264]
[1644757177454,0.14120315,42497.0,42492.0,0.05904893]
[1644757177653,0.14120315,42497.0,42492.0,0.05953264]
[1644757178351,0.14108317,42497.0,42492.0,0.05953264]
[1644757178753,0.14108317,42497.0,42492.0,0.05904893]
[1644757179002,0.14108317,42497.0,42492.0,0.05953264]
[1644757179205,0.14108317,42497.0,42492.0,0.12802679]
[1644757179902,0.14108317,42497.0,42492.0,0.12754308]
[1644757180202,0.0993,42495.0,42492.0,0.12802679]
[1644757181204,0.0993,42495.0,42492.0,0.05904893]
[1644757188203,0.14108317,42497.0,42492.0,0.05904893]
[1644757188506,0.0993,42494.0,42492.0,0.05904893]
[1644757189706,0.0993,42494.0,42493.0,0.00167867]
[1644757189903,0.0993,42494.0,42493.0,0.0018846]
[1644757190754,0.429422,42494.0,42493.0,0.0018846]
[1644757191152,0.0993,42494.0,42493.0,0.00167867]
[1644757191353,0.330122,42494.0,42493.0,0.00167867]
[1644757191754,0.5581225,42494.0,42493.0,0.00167867]
[1644757192155,0.5581225,42494.0,42493.0,0.0018846]
[1644757192554,0.330122,42493.0,42492.0,0.05507581]
[1644757193156,0.0993,42495.0,42492.0,0.05507581]
[1644757195305,0.14108317,42497.0,42492.0,0.05507581]
[1644757195504,0.14108317,42497.0,42493.0,0.058836]
[1644757197104,0.14108317,42497.0,42494.0,0.058835]
[1644757197404,0.14108317,42497.0,42495.0,0.058835]
[1644757198054,0.14108317,42497.0,42496.0,0.08825577]
[1644757199757,0.14207245,42497.0,42496.0,0.08825577]
[1644757202203,0.14238319,42497.0,42496.0,0.08825577]
[1644757203705,0.14238319,42497.0,42496.0,0.46406269]
[1644757203907,0.14238319,42497.0,42496.0,0.15945577]
[1644757205007,0.14238319,42497.0,42496.0,0.35925577]
[1644757207355,0.14238319,42497.0,42496.0,0.66234967]
[1644757208463,0.14238319,42497.0,42496.0,0.35925577]
[1644757209105,0.14238319,42497.0,42496.0,0.53116037]
[1644757209307,0.14238319,42497.0,42496.0,0.70306497]
[1644757210906,0.14238319,42497.0,42496.0,1.94806497]
[1644757211309,0.14238319,42497.0,42496.0,0.85306497]
[1644757212212,0.14238319,42497.0,42496.0,2.09806497]
[1644757217002,0.14231516,42497.0,42496.0,2.09806497]
[1644757218002,0.04729747,42500.0,42497.0,0.95273147]
[1644757218205,0.04729747,42500.0,42499.0,0.058823]
[1644757218402,0.04729747,42500.0,42499.0,0.130009]
[1644757218604,0.04729747,42500.0,42499.0,0.3019136]
[1644757218904,0.53301315,42510.0,42499.0,0.4738182]
[1644757219102,0.53326087,42510.0,42506.0,0.08295978]
[1644757219301,0.33036972,42509.0,42507.0,0.05882]
[1644757219501,0.330122,42509.0,42507.0,0.05882]
[1644757222359,0.33036972,42509.0,42507.0,0.05882]
[1644757222562,0.27444632,42504.0,42502.0,0.058822]
[1644757222964,0.27444632,42504.0,42503.0,0.05882]
[1644757223762,0.27444632,42504.0,42503.0,0.30920384]
[1644757224008,0.27444632,42504.0,42503.0,0.48110844]
[1644757227005,0.26944632,42504.0,42503.0,0.48110844]
[1644757229154,0.26944632,42504.0,42503.0,0.4026292]
[1644757233406,0.59956832,42504.0,42503.0,0.3438092]
[1644757234304,0.83977132,42504.0,42503.0,0.3438092]
[1644757234704,0.99988447,42504.0,42503.0,0.3438092]
[1644757234906,0.83977132,42504.0,42503.0,0.3438092]
[1644757235108,1.09988447,42504.0,42503.0,0.3438092]
[1644757235359,0.93977132,42504.0,42503.0,0.3438092]
[1644757235555,1.09988447,42504.0,42503.0,0.3438092]
[1644757236256,1.44767178,42504.0,42503.0,0.3438092]
[1644757236855,1.39767178,42504.0,42503.0,0.3438092]
[1644757238158,1.45651178,42504.0,42503.0,0.3438092]
[1644757240405,1.45917944,42504.0,42503.0,0.32490742]
[1644757240807,1.45917944,42504.0,42503.0,0.1719046]
[1644757241005,1.45917944,42504.0,42503.0,0.32490742]
[1644757242007,1.50917944,42504.0,42503.0,0.32490742]
[1644757242209,1.55917944,42504.0,42503.0,0.32490742]
[1644757242858,1.50033944,42504.0,42503.0,0.32490742]
[1644757247009,1.50033944,42504.0,42503.0,0.15300282]
[1644757247310,1.69963901,42504.0,42503.0,0.15374375]
[1644757247509,1.75848501,42504.0,42503.0,0.15374375]
[1644757247707,1.81058254,42504.0,42503.0,0.22304715]
[1644757248308,1.88555811,42504.0,42503.0,0.14298717]
[1644757248509,0.05885,42501.0,42495.0,0.0006]
[1644757248711,0.05,42498.0,42495.0,0.0006]
[1644757248910,0.6468436,42497.0,42495.0,0.0006]
[1644757249111,0.330122,42496.0,42495.0,0.0006]
[1644757249314,0.430122,42496.0,42495.0,0.0006]
[1644757249509,0.59023515,42496.0,42495.0,0.0006]
[1644757249710,0.430122,42496.0,42495.0,0.0006]
[1644757249911,0.59023515,42496.0,42495.0,0.0006]
[1644757250765,0.9284306,42496.0,42495.0,0.0006]
[1644757251771,0.9284306,42496.0,42484.0,0.0588]
[1644757251772,1.05,42495.0,42484.0,0.0588]
[1644757251974,0.05,42487.0,42484.0,0.0588]
[1644757252168,0.54278437,42486.0,42484.0,0.0588]
[1644757252370,0.05,42485.0,42484.0,0.0588]
[1644757252567,0.330122,42484.0,42483.0,0.05954976]
[1644757252770,0.430122,42484.0,42482.0,0.0011]
[1644757253066,0.330122,42483.0,42482.0,0.0011]
[1644757253267,0.430122,42483.0,42482.0,0.0011]
[1644757254106,0.70330896,42483.0,42482.0,0.0011]
[1644757254904,0.60330896,42483.0,42482.0,0.0011]
[1644757255505,0.75330896,42483.0,42482.0,0.0011]
[1644757257111,0.85260896,42483.0,42482.0,0.0011]
[1644757258554,0.75330896,42483.0,42482.0,0.0011]
[1644757258955,0.480122,42483.0,42482.0,0.0011]
[1644757259256,0.84648903,42483.0,42482.0,0.0011]
[1644757259856,0.69648903,42483.0,42482.0,0.0011]
[1644757260255,0.79648903,42483.0,42482.0,0.0011]
[1644757262931,0.529422,42483.0,42482.0,0.0011]
[1644757263231,0.429422,42483.0,42482.0,0.0011]
[1644757263431,0.0993,42483.0,42482.0,0.0011]
[1644757263637,0.0993,42483.0,42482.0,0.072339]
[1644757263834,0.00163669,42484.0,42482.0,0.072339]
[1644757265256,0.29939809,42492.0,42482.0,0.072339]
[1644757265456,0.29939809,42492.0,42488.0,0.0709171]
[1644757265657,0.330122,42490.0,42488.0,0.0709171]
[1644757265860,0.0993,42492.0,42488.0,0.0709171]
[1644757266057,0.0993,42492.0,42489.0,0.27128378]
[1644757266257,0.0993,42492.0,42488.0,0.0709171]
[1644757266757,0.0993,42492.0,42488.0,0.07143718]
[1644757266956,0.0993,42492.0,42489.0,0.058843]
[1644757267361,0.0993,42492.0,42489.0,0.00020214]
[1644757267556,0.00163669,42493.0,42488.0,0.0709171]
[1644757267759,0.00163669,42493.0,42488.0,0.07143718]
[1644757268559,0.00163669,42493.0,42488.0,0.07163932]
[1644757268768,0.00163669,42493.0,42488.0,0.07111924]
[1644757269015,0.00163669,42493.0,42488.0,0.07163932]
[1644757269410,0.330122,42491.0,42488.0,0.00072222]
[1644757269709,0.330122,42491.0,42488.0,0.00052008]
[1644757269914,0.00163669,42493.0,42486.0,0.00020214]
[1644757270116,0.10138309,42495.0,42486.0,0.05]
[1644757270312,0.10138309,42495.0,42487.0,0.07174009]
[1644757270510,0.10138309,42495.0,42487.0,0.07194223]
[1644757270711,0.10138309,42495.0,42489.0,0.058844]
[1644757270913,0.10138309,42495.0,42490.0,0.071213]
[1644757271112,0.10138309,42495.0,42492.0,0.06338118]
[1644757272515,0.10138309,42495.0,42491.0,0.05936206]
[1644757272957,0.10131012,42495.0,42491.0,0.05936206]
[1644757273158,0.00201012,42495.0,42491.0,0.05936206]
[1644757273559,0.00201012,42495.0,42489.0,0.00020214]
[1644757273760,0.00201012,42495.0,42491.0,0.06511121]
[1644757274763,0.00201012,42495.0,42491.0,0.06459115]
[1644757274964,0.00201012,42495.0,42491.0,0.06511121]
[1644757275270,0.58273524,42493.0,42491.0,0.00052006]
[1644757276067,0.058854,42492.0,42485.0,0.00020214]
[1644757276266,0.058854,42492.0,42490.0,0.00052007]
[1644757276515,0.330122,42491.0,42490.0,0.00052007]
[1644757276711,0.058854,42492.0,42490.0,0.00052007]
[1644757276909,0.330122,42491.0,42490.0,0.00052007]
[1644757277210,0.330122,42491.0,42485.0,0.00020214]
[1644757277413,0.388977,42490.0,42488.0,0.00052008]
[1644757277611,0.26589789,42489.0,42488.0,0.00052008]
[1644757277814,0.59601989,42489.0,42488.0,0.00052008]
[1644757278009,0.64601989,42489.0,42488.0,0.00052008]
[1644757278210,0.74601989,42489.0,42488.0,0.00052008]
[1644757278410,1.288982,42488.0,42482.0,0.00060214]
[1644757278611,0.05886,42488.0,42486.0,0.0005201]
[1644757278811,0.330122,42487.0,42486.0,0.0005201]
[1644757279210,0.430122,42487.0,42486.0,0.0005201]
[1644757279710,0.1,42487.0,42484.0,0.00052011]
[1644757279910,0.32953935,42488.0,42484.0,0.00052011]
[1644757280111,0.330122,42487.0,42484.0,0.00052011]
[1644757280377,0.058861,42486.0,42484.0,0.00052011]
[1644757280574,0.330122,42485.0,42484.0,0.00052011]
[1644757280771,0.058861,42486.0,42482.0,0.00060214]
[1644757280974,0.058861,42486.0,42482.0,0.00110896]
[1644757281375,0.330122,42485.0,42482.0,0.00110896]
[1644757282074,0.330122,42485.0,42482.0,0.00060214]
[1644757282373,0.058861,42486.0,42482.0,0.00060214]
[1644757282774,0.52953835,42488.0,42482.0,0.00060214]
[1644757282977,0.42067935,42488.0,42482.0,0.00060214]
[1644757283173,0.37067935,42488.0,42482.0,0.00060214]
[1644757283373,0.1993,42490.0,42483.0,0.00050682]
[1644757283573,0.1,42488.0,42483.0,0.00050682]
[1644757283774,0.32521349,42489.0,42483.0,0.00050682]
[1644757284016,0.330122,42488.0,42483.0,0.00050682]
[1644757284409,0.1,42488.0,42482.0,0.00060214]
[1644757284611,0.1,42488.0,42483.0,0.00047952]
[1644757285011,0.330122,42487.0,42483.0,0.00047952]
[1644757285213,0.1,42488.0,42483.0,0.00047952]
[1644757285412,0.330122,42487.0,42483.0,0.00047952]
[1644757285615,0.058857,42489.0,42482.0,0.00060214]
[1644757285616,0.00203922,42485.0,42482.0,0.00060214]
[1644757285815,0.00203922,42485.0,42483.0,0.00047952]
[1644757286015,0.00203922,42485.0,42481.0,0.011]
[1644757286016,0.00035689,42482.0,42481.0,0.011]
[1644757286213,0.05035689,42482.0,42481.0,0.011]
[1644757286413,0.00035689,42482.0,42481.0,0.011]
[1644757287861,0.05035689,42482.0,42481.0,0.011]
[1644757288460,0.64613309,42482.0,42481.0,0.011]
[1644757288663,0.31601109,42482.0,42481.0,0.011]
[1644757288860,0.41601109,42482.0,42481.0,0.011]
[1644757290970,0.15035689,42482.0,42481.0,0.011]
[1644757291166,0.48047889,42482.0,42481.0,0.011]
[1644757291366,0.15035689,42482.0,42481.0,0.011]
[1644757292610,0.00035689,42482.0,42481.0,0.011]
[1644757293811,0.00035689,42482.0,42481.0,0.01120178]
[1644757294511,0.33047889,42482.0,42481.0,0.01120178]
[1644757294715,0.00035689,42482.0,42481.0,0.01120178]
[1644757297160,0.00035689,42482.0,42481.0,0.07005778]
[1644757297359,0.00035689,42482.0,42481.0,0.01120178]
[1644757299407,0.33047889,42482.0,42481.0,0.00120178]
[1644757299807,0.59552905,42482.0,42481.0,0.00120178]
[1644757300410,0.69552905,42482.0,42481.0,0.00120178]
[1644757300608,0.69559132,42482.0,42481.0,0.00120178]
[1644757301312,0.59559132,42482.0,42481.0,0.00120178]
[1644757301510,0.59565359,42482.0,42481.0,0.00120178]
[1644757302764,0.69571586,42482.0,42481.0,0.00120178]
[1644757302965,0.4306657,42482.0,42481.0,0.00120178]